fUSD/lending_fUSD_20240412
["ID","MTS","AMOUNT","RATE_DAILY","PERIOD"]
[322345344,1712957439464,-6270.45245458,0.00039941,2]
[322345346,1712957439473,-156.17870577,0.00039952,7]
[322345348,1712957439483,-27119.35776358,0.0004,4]
[322345350,1712957439492,-22126.04814087,0.0004,4]
[322345352,1712957439502,-193.0576741,0.0004,2]
[322345354,1712957439512,-300.0,0.0004,7]
[322345356,1712957439522,-405.36504908,0.00040107,2]
[322345358,1712957439532,-151.15,0.00040264,2]
[322345360,1712957439541,-527.0,0.00040274,7]
[322345362,1712957439551,-3296.21113325,0.00040325,14]
[322345364,1712957439560,-1000.0,0.00040353,2]
[322345366,1712957439570,-152.58356749,0.00040587,30]
[322345368,1712957439579,-154.98813121,0.00040647,30]
[322345370,1712957439589,-462.04,0.00040767,15]
[322345372,1712957439598,-750.0,0.00041,3]
[322345374,1712957439608,-405.36504908,0.00041028,2]
[322345376,1712957439618,-1000.0,0.00041095,2]
[322345378,1712957439627,-157.0,0.00041096,2]
[322345380,1712957439639,-3412.0,0.000411,2]
[322345382,1712957439650,-156.66547669,0.00041165,30]
[322345384,1712957439663,-155.9196356,0.00041416,30]
[322345386,1712957439673,-540.82,0.00041453,2]
[322345388,1712957439683,-527.0,0.00041507,7]
[322345390,1712957439694,-316.48200968,0.00041538,2]
[322345393,1712957439705,-206.35448214,0.00041677,16]
[322345395,1712957439714,-152.846041,0.00041677,13]
[322345397,1712957439724,-882.79,0.000417,4]
[322345399,1712957439735,-882.79,0.000417,4]
[322345401,1712957439746,-882.79,0.000417,4]
[322345402,1712957439756,-882.79,0.000417,4]
[322345404,1712957439768,-882.79,0.000417,4]
[322345406,1712957439778,-882.79,0.000417,4]
[322345408,1712957439787,-882.79,0.000417,4]
[322345410,1712957439797,-882.79,0.000417,4]
[322345412,1712957439806,-882.79,0.000417,4]
[322345414,1712957439816,-882.79,0.000417,4]
[322345416,1712957439826,-882.79,0.000417,4]
[322345418,1712957439836,-882.79,0.000417,4]
[322345420,1712957439846,-882.79,0.000417,4]
[322345422,1712957439857,-882.79,0.000417,4]
[322345424,1712957439867,-882.79,0.000417,4]
[322345426,1712957439877,-882.79,0.000417,4]
[322345428,1712957439886,-882.79,0.000417,4]
[322345430,1712957439896,-882.79,0.000417,4]
[322345433,1712957439906,-882.79,0.000417,4]
[322345434,1712957439915,-882.79,0.000417,4]
[322345436,1712957439924,-155.18,0.000417,4]
[322345438,1712957439934,-155.18,0.000417,4]
[322345440,1712957439943,-155.18,0.000417,4]
[322345442,1712957439953,-155.18,0.000417,4]
[322345444,1712957439963,-155.18,0.000417,4]
[322345446,1712957439973,-155.18,0.000417,4]
[322345448,1712957439984,-3296.21113325,0.00041783,16]
[322345450,1712957439994,-155.0,0.00041916,4]
[322345453,1712957440004,-155.9196356,0.0004196,30]
[322345454,1712957440013,-907.52,0.00041995,2]
[322345457,1712957440024,-412.01,0.00041995,2]
[322345459,1712957440034,-907.52,0.00041995,2]
[322345461,1712957440044,-907.52,0.00041995,2]
[322345462,1712957440053,-412.01,0.00041995,2]
[322345464,1712957440063,-907.52,0.00041995,2]
[322345466,1712957440072,-412.01,0.00041995,2]
[322345467,1712957440082,-907.52,0.00041995,2]
[322345468,1712957440091,-412.01,0.00041995,2]
[322345469,1712957440101,-907.52,0.00041995,2]
[322345470,1712957440111,-412.01,0.00041995,2]
[322345471,1712957440120,-412.01,0.00041995,2]
[322345472,1712957440130,-907.52,0.00041995,2]
[322345473,1712957440140,-412.01,0.00041995,2]
[322345474,1712957440150,-907.52,0.00041995,2]
[322345475,1712957440159,-907.52,0.00041995,2]
[322345476,1712957440168,-412.01,0.00041995,2]
[322345477,1712957440178,-192.40638411,0.00041997,30]
[322345479,1712957440195,-412.01,0.00042041,2]
[322345481,1712957440207,-252.99,0.0004212,2]
[322345482,1712957440216,-1036.2,0.00042132,2]
[322345484,1712957440226,-418.16,0.00042132,2]
[322345485,1712957440235,-197.68,0.00042132,2]
[322345486,1712957440245,-181.77,0.00042132,2]
[322345487,1712957440254,-300.0,0.00042132,2]
[322345488,1712957440264,-162.36,0.00042132,2]
[322345489,1712957440274,-444.59,0.00042132,2]
[322345491,1712957440284,-254.73,0.00042132,2]
[322345493,1712957440293,-214.4,0.00042132,2]
[322345494,1712957440302,-150.0,0.00042132,2]
[322345495,1712957440312,-418.16,0.00042132,2]
[322345496,1712957440321,-150.0,0.00042132,2]
[322345497,1712957440331,-150.0,0.00042132,2]
[322345498,1712957440340,-349.62,0.00042132,2]
[322345499,1712957440349,-162.36,0.00042132,2]
[322345500,1712957440358,-150.0,0.00042132,2]
[322345501,1712957440368,-150.0,0.00042132,2]
[322345502,1712957440377,-150.0,0.00042132,2]
[322345503,1712957440386,-418.16,0.00042132,2]
[322345504,1712957440396,-162.36,0.00042132,2]
[322345505,1712957440405,-150.0,0.00042132,2]
[322345506,1712957440415,-349.62,0.00042132,2]
[322345507,1712957440426,-150.0,0.00042132,2]
[322345508,1712957440435,-418.16,0.00042132,2]
[322345509,1712957440444,-150.0,0.00042132,2]
[322345510,1712957440454,-150.0,0.00042132,2]
[322345511,1712957440464,-150.0,0.00042132,2]
[322345512,1712957440473,-162.36,0.00042132,2]
[322345513,1712957440483,-418.16,0.00042132,2]
[322345514,1712957440492,-150.0,0.00042132,2]
[322345515,1712957440502,-150.0,0.00042132,2]
[322345516,1712957440511,-161.5,0.00042132,2]
[322345517,1712957440522,-150.0,0.00042132,2]
[322345518,1712957440532,-418.16,0.00042132,2]
[322345519,1712957440541,-150.0,0.00042132,2]
[322345520,1712957440551,-150.0,0.00042132,2]
[322345521,1712957440560,-418.16,0.00042132,2]
[322345522,1712957440570,-150.0,0.00042132,2]
[322345523,1712957440580,-418.16,0.00042132,2]
[322345524,1712957440589,-150.0,0.00042132,2]
[322345525,1712957440599,-150.0,0.00042132,2]
[322345526,1712957440608,-418.16,0.00042132,2]
[322345527,1712957440618,-150.0,0.00042132,2]
[322345528,1712957440628,-150.0,0.00042132,2]
[322345529,1712957440637,-154.52231468,0.00042167,30]
[322345530,1712957440647,-6270.45245458,0.00042179,2]
[322345531,1712957440657,-152.26,0.0004227,2]
[322345532,1712957440670,-155.9196356,0.00042333,30]
[322345533,1712957440680,-156.66547669,0.00042383,30]
[322345534,1712957440689,-156.08349196,0.00042395,30]
[322345535,1712957440699,-300.8,0.00042405,2]
[322345536,1712957440710,-1033.57025315,0.00042465,2]
[322345537,1712957440721,-156.17870577,0.00042468,30]
[322345538,1712957440730,-152.58356749,0.00042508,30]
[322345539,1712957440741,-200.0,0.00042627,15]
[322345540,1712957440752,-362.331097,0.00042627,20]
[322345541,1712957440761,-152.6639887,0.00042638,30]
[322345542,1712957440771,-152.0,0.0004269,3]
[322345543,1712957440781,-527.0,0.00042739,7]
[322345544,1712957440790,-962.68936662,0.0004289,10]
[322345545,1712957440800,-150.0,0.00042953,2]
[322345546,1712957440810,-150.0,0.00042953,2]
[322345547,1712957440820,-150.0,0.00042953,2]
[322345548,1712957440829,-150.0,0.00042953,2]
[322345549,1712957440839,-150.0,0.00042953,2]
[322345550,1712957440849,-150.0,0.00042953,2]
[322345551,1712957440858,-150.0,0.00042953,2]
[322345552,1712957440868,-150.0,0.00042953,2]
[322345553,1712957440878,-150.0,0.00042953,2]
[322345554,1712957440887,-150.0,0.00042953,2]
[322345555,1712957440897,-150.0,0.00042953,2]
[322345556,1712957440907,-150.0,0.00042953,2]
[322345557,1712957440916,-150.0,0.00042953,2]
[322345558,1712957440926,-150.0,0.00042953,2]
[322345559,1712957440936,-150.0,0.00042953,2]
[322345560,1712957440945,-150.0,0.00042953,2]
[322345561,1712957440955,-150.0,0.00042953,2]
[322345562,1712957440966,-150.0,0.00042953,2]
[322345563,1712957440976,-150.0,0.00042953,2]
[322345564,1712957440986,-418.16,0.00042953,2]
[322345565,1712957440996,-150.0,0.00042953,2]
[322345566,1712957441006,-150.0,0.00042953,2]
[322345567,1712957441018,-418.16,0.00042953,2]
[322345568,1712957441028,-907.52,0.00042953,2]
[322345569,1712957441039,-418.16,0.00042953,2]
[322345570,1712957441049,-150.0,0.00042953,2]
[322345571,1712957441060,-907.52,0.00042953,2]
[322345572,1712957441070,-150.0,0.00042953,2]
[322345573,1712957441080,-150.0,0.00042953,2]
[322345574,1712957441091,-150.0,0.00042953,2]
[322345575,1712957441101,-296.72,0.00042953,2]
[322345576,1712957441111,-330.45,0.00042953,2]
[322345577,1712957441122,-150.5,0.0004298,15]
[322345578,1712957441133,-150.5,0.0004298,15]
[322345579,1712957441143,-154.14,0.0004299,15]
[322345580,1712957441154,-209.87,0.0004299,15]
[322345581,1712957441164,-150.87,0.0004299,15]
[322345582,1712957441174,-241.5,0.0004299,15]
[322345583,1712957441185,-150.5,0.0004299,15]
[322345584,1712957441195,-150.5,0.0004299,15]
[322345585,1712957441206,-150.5,0.0004299,15]
[322345586,1712957441216,-150.5,0.0004299,15]
[322345587,1712957441226,-800.0,0.00043,3]
[322345588,1712957441236,-157.17590103,0.00043206,30]
[322345589,1712957441247,-200.0,0.00043225,20]
[322345590,1712957441257,-3296.21113325,0.0004324,18]
[322345591,1712957441267,-156.17870577,0.00043304,30]
[322345592,1712957441278,-180.63901437,0.00043425,30]
[322345593,1712957441288,-462.04,0.00043507,15]
[322345594,1712957441299,-154.03740106,0.00043513,30]
[322345595,1712957441309,-540.82,0.00043717,2]
[322345596,1712957441319,-6832.22,0.00043836,2]
[322345597,1712957441330,-768.5,0.00043836,2]
[322345598,1712957441340,-527.0,0.00043972,7]
[322345599,1712957441350,-1723.857658,0.00044,44]
[322345600,1712957441360,-1000.0,0.00044021,2]
[322345601,1712957441370,-316.48200968,0.00044211,2]
[322345602,1712957441381,-192.40638414,0.0004425,30]
[322345603,1712957441391,-2352.0,0.000444,2]
[322345604,1712957441402,-6270.45245458,0.00044417,2]
[322345605,1712957441412,-152.84604099,0.00044598,24]
[322345606,1712957441422,-152.26,0.00044618,2]
[322345607,1712957441432,-3296.21113325,0.00044698,19]
[322345608,1712957441442,-208.11,0.00044701,2]
[322345609,1712957441452,-156.66547669,0.00044914,30]
[322345610,1712957441463,-850.0,0.00045,3]
[322345611,1712957441473,-153.89850043,0.00045048,30]
[322345612,1712957441483,-153.76020684,0.00045055,30]
[322345613,1712957441492,-3007.57,0.00045125,2]
[322345614,1712957441502,-9600.89,0.00045125,2]
[322345615,1712957441512,-527.0,0.00045205,7]
[322345616,1712957441522,-152.58356749,0.00045333,30]
[322345617,1712957441532,-154.98813121,0.00045405,30]
[322345618,1712957441542,-150.0,0.000455,8]
[322345619,1712957441552,-882.79,0.000456,5]
[322345620,1712957441561,-882.79,0.000456,5]
[322345621,1712957441571,-882.79,0.000456,5]
[322345622,1712957441581,-882.79,0.000456,5]
[322345623,1712957441591,-882.79,0.000456,5]
[322345624,1712957441602,-882.79,0.000456,5]
[322345625,1712957441613,-882.79,0.000456,5]
[322345626,1712957441623,-882.79,0.000456,5]
[322345627,1712957441633,-882.79,0.000456,5]
[322345628,1712957441643,-882.79,0.000456,5]
[322345629,1712957441655,-882.79,0.000456,5]
[322345630,1712957441667,-882.79,0.000456,5]
[322345631,1712957441677,-882.79,0.000456,5]
[322345632,1712957441688,-882.79,0.000456,5]
[322345633,1712957441698,-882.79,0.000456,5]
[322345634,1712957441709,-882.79,0.000456,5]
[322345635,1712957441719,-882.79,0.000456,5]
[322345636,1712957441729,-882.79,0.000456,5]
[322345637,1712957441741,-882.79,0.000456,5]
[322345638,1712957441751,-882.79,0.000456,5]
[322345639,1712957441761,-155.18,0.000456,5]
[322345640,1712957441773,-155.18,0.000456,5]
[322345641,1712957441786,-155.18,0.000456,5]
[322345642,1712957441796,-155.18,0.000456,5]
[322345643,1712957441807,-155.18,0.000456,5]
[322345644,1712957441817,-155.18,0.000456,5]
[322345645,1712957441828,-156.66547669,0.00045608,30]
[322345646,1712957441839,-562.83036389,0.00045642,4]
[322345647,1712957441849,-159.25,0.00045662,2]
[322345648,1712957441860,-162.79,0.00045662,2]
[322345649,1712957441870,-173.07,0.00045712,2]
[322345650,1712957441881,-156.17870577,0.00045778,30]
[322345651,1712957441892,-154.03740108,0.00045913,30]
[322345652,1712957441902,-540.82,0.00045981,2]
[322345653,1712957441912,-200.0,0.00045998,25]
[322345654,1712957441923,-150.0,0.00046,8]
[322345655,1712957441933,-156.66547669,0.00046025,30]
[322345656,1712957441944,-152.58356749,0.0004614,30]
[322345657,1712957441955,-3296.21113325,0.00046155,21]
[322345658,1712957441965,-6926.40813717,0.00046191,2]
[322345659,1712957441975,-152.58356749,0.00046217,30]
[322345660,1712957441986,-153.89850043,0.0004624,30]
[322345661,1712957441996,-462.04,0.00046247,15]
[322345662,1712957442007,-156.17870577,0.00046382,30]
[322345663,1712957442019,-156.17870577,0.00046498,30]
[322345664,1712957442031,-150.0,0.000465,8]
[322345665,1712957442042,-162.97508016,0.00046525,30]
[322345666,1712957442052,-800.0,0.00046548,2]
[322345667,1712957442062,-212.65,0.00046565,10]
[322345668,1712957442073,-177.21,0.00046565,10]
[322345669,1712957442083,-445.59848386,0.00046573,4]
[322345670,1712957442094,-783.91365264,0.00046573,4]
[322345671,1712957442104,-809.08158788,0.00046573,4]
[322345672,1712957442115,-2851.76652198,0.00046573,5]
[322345673,1712957442125,-281.74817421,0.00046573,4]
[322345674,1712957442136,-155.0,0.00046573,4]
[322345675,1712957442148,-286.69789462,0.00046573,4]
[322345676,1712957442159,-1045.38886647,0.00046573,4]
[322345677,1712957442170,-500.0,0.00046575,2]
[322345678,1712957442183,-300.0,0.00046575,7]
[322345679,1712957442194,-500.0,0.00046575,2]
[322345680,1712957442204,-368.76076211,0.00046575,31]
[322345681,1712957442214,-500.0,0.00046575,31]
[322345682,1712957442224,-500.0,0.00046575,31]
[322345683,1712957442234,-500.0,0.00046575,31]
[322345684,1712957442244,-500.0,0.00046575,31]
[322345685,1712957442255,-500.0,0.00046575,31]
[322345686,1712957442266,-506.84691733,0.00046575,31]
[322345687,1712957442279,-500.0,0.00046575,31]
[322345688,1712957442289,-500.0,0.00046575,31]
[322345689,1712957442299,-500.0,0.00046575,31]
[322345690,1712957442313,-500.0,0.00046575,31]
[322345691,1712957442323,-500.0,0.00046575,31]
[322345692,1712957442333,-500.0,0.00046575,31]
[322345693,1712957442344,-500.0,0.00046575,31]
[322345694,1712957442354,-500.0,0.00046575,31]
[322345695,1712957442365,-500.0,0.00046575,31]
[322345696,1712957442375,-500.0,0.00046575,31]
[322345697,1712957442385,-500.0,0.00046575,31]
[322345698,1712957442395,-500.0,0.00046575,31]
[322345699,1712957442405,-500.0,0.00046575,31]
[322345700,1712957442415,-500.0,0.00046575,31]
[322345701,1712957442425,-500.0,0.00046575,31]
[322345702,1712957442434,-500.0,0.00046575,31]
[322345703,1712957442444,-184.98405149,0.00046575,31]
[322345704,1712957442454,-500.0,0.00046575,31]
[322345705,1712957442464,-500.0,0.00046575,31]
[322345706,1712957442474,-500.0,0.00046575,31]
[322345707,1712957442484,-500.0,0.00046575,31]
[322345708,1712957442493,-500.0,0.00046575,31]
[322345709,1712957442503,-500.0,0.00046575,31]
[322345710,1712957442513,-500.0,0.00046575,31]
[322345711,1712957442524,-500.0,0.00046575,31]
[322345712,1712957442534,-500.0,0.00046575,31]
[322345713,1712957442544,-500.0,0.00046575,31]
[322345714,1712957442553,-500.0,0.00046575,31]
[322345715,1712957442563,-500.0,0.00046575,31]
[322345716,1712957442573,-500.0,0.00046575,31]
[322345717,1712957442583,-500.0,0.00046575,31]
[322345718,1712957442592,-500.0,0.00046575,31]
[322345719,1712957442602,-500.0,0.00046575,31]
[322345720,1712957442612,-500.0,0.00046575,31]
[322345721,1712957442622,-500.0,0.00046575,31]
[322345722,1712957442631,-499.84469003,0.00046575,31]
[322345723,1712957442641,-500.0,0.00046575,31]
[322345724,1712957442653,-500.0,0.00046575,31]
[322345725,1712957442662,-500.0,0.00046575,31]
[322345726,1712957442673,-500.0,0.00046575,31]
[322345727,1712957442683,-500.0,0.00046575,31]
[322345728,1712957442694,-500.0,0.00046575,31]
[322345729,1712957442704,-500.0,0.00046575,7]
[322345730,1712957442714,-500.0,0.00046575,31]
[322345731,1712957442724,-777.47405625,0.00046575,4]
[322345732,1712957442735,-500.0,0.00046575,31]
[322345733,1712957442746,-500.0,0.00046575,31]
[322345734,1712957442755,-500.0,0.00046575,31]
[322345735,1712957442765,-500.0,0.00046575,31]
[322345736,1712957442775,-500.0,0.00046575,31]
[322345737,1712957442785,-13410.39801573,0.00046575,4]
[322345738,1712957442795,-500.0,0.00046575,31]
[322345739,1712957442805,-500.0,0.00046575,31]
[322345740,1712957442815,-500.0,0.00046575,31]
[322345741,1712957442826,-500.0,0.00046575,31]
[322345742,1712957442836,-500.0,0.00046575,31]
[322345743,1712957442849,-500.0,0.00046575,31]
[322345744,1712957442859,-500.0,0.00046575,31]
[322345745,1712957442869,-500.0,0.00046575,31]
[322345746,1712957442880,-3355.53099439,0.00046575,4]
[322345747,1712957442890,-500.0,0.00046575,31]
[322345748,1712957442900,-500.0,0.00046575,31]
[322345749,1712957442909,-500.0,0.00046575,31]
[322345750,1712957442919,-500.0,0.00046575,31]
[322345751,1712957442930,-500.0,0.00046575,31]
[322345752,1712957442939,-501.98512676,0.00046575,31]
[322345753,1712957442949,-500.0,0.00046575,31]
[322345754,1712957442959,-500.0,0.00046575,31]
[322345755,1712957442969,-500.0,0.00046575,31]
[322345756,1712957442980,-561.18901668,0.00046575,31]
[322345757,1712957442990,-500.0,0.00046575,31]
[322345758,1712957443000,-500.0,0.00046575,31]
[322345759,1712957443010,-500.0,0.00046575,31]
[322345760,1712957443020,-500.0,0.00046575,31]
[322345761,1712957443031,-500.0,0.00046575,31]
[322345762,1712957443040,-467.34472512,0.00046575,31]
[322345763,1712957443050,-500.0,0.00046575,31]
[322345764,1712957443060,-500.0,0.00046575,31]
[322345765,1712957443070,-500.0,0.00046575,31]
[322345766,1712957443081,-500.0,0.00046575,31]
[322345767,1712957443091,-500.0,0.00046575,31]
[322345768,1712957443101,-500.0,0.00046575,31]
[322345769,1712957443111,-455.26464914,0.00046575,31]
[322345770,1712957443121,-500.0,0.00046575,31]
[322345771,1712957443131,-500.0,0.00046575,31]
[322345772,1712957443141,-500.0,0.00046575,31]
[322345773,1712957443151,-500.0,0.00046575,31]
[322345774,1712957443161,-500.0,0.00046575,31]
[322345775,1712957443171,-500.0,0.00046575,31]
[322345776,1712957443181,-500.0,0.00046575,31]
[322345777,1712957443192,-500.0,0.00046575,31]
[322345778,1712957443202,-500.0,0.00046575,31]
[322345780,1712957443212,-500.0,0.00046575,31]
[322345783,1712957443222,-561.72976611,0.00046575,31]
[322345785,1712957443233,-500.0,0.00046575,31]
[322345786,1712957443243,-500.0,0.00046575,31]
[322345787,1712957443253,-500.0,0.00046575,31]
[322345788,1712957443263,-500.0,0.00046575,31]
[322345789,1712957443274,-500.0,0.00046575,31]
[322345791,1712957443285,-500.0,0.00046575,31]
[322345792,1712957443295,-500.0,0.00046575,31]
[322345795,1712957443307,-500.0,0.00046575,31]
[322345797,1712957443316,-500.0,0.00046575,31]
[322345798,1712957443326,-500.0,0.00046575,31]
[322345799,1712957443336,-500.0,0.00046575,31]
[322345800,1712957443346,-500.0,0.00046575,31]
[322345801,1712957443356,-500.0,0.00046575,31]
[322345802,1712957443366,-502.56403856,0.00046575,31]
[322345803,1712957443378,-500.0,0.00046575,31]
[322345804,1712957443388,-500.0,0.00046575,31]
[322345805,1712957443398,-500.0,0.00046575,31]
[322345806,1712957443408,-500.0,0.00046575,31]
[322345807,1712957443420,-226.82069499,0.00046575,31]
[322345808,1712957443718,-543.77,0.00046575,31]
[322345809,1712957443728,-500.0,0.00046575,31]
[322345810,1712957443738,-500.0,0.00046575,31]
[322345811,1712957443748,-500.0,0.00046575,31]
[322345812,1712957443759,-500.0,0.00046575,31]
[322345813,1712957443768,-500.0,0.00046575,31]
[322345814,1712957443779,-500.0,0.00046575,31]
[322345815,1712957443788,-500.0,0.00046575,31]
[322345816,1712957443797,-500.0,0.00046575,31]
[322345817,1712957443806,-491.01319593,0.00046575,31]
[322345818,1712957443816,-500.0,0.00046575,31]
[322345819,1712957443825,-500.0,0.00046575,31]
[322345820,1712957443836,-500.0,0.00046575,31]
[322345821,1712957443845,-500.0,0.00046575,31]
[322345822,1712957443855,-500.0,0.00046575,31]
[322345823,1712957443864,-500.0,0.00046575,31]
[322345824,1712957443873,-500.0,0.00046575,31]
[322345825,1712957443884,-500.0,0.00046575,31]
[322345826,1712957443893,-500.0,0.00046575,31]
[322345827,1712957443902,-500.0,0.00046575,31]
[322345828,1712957443911,-500.0,0.00046575,31]
[322345829,1712957443921,-500.0,0.00046575,31]
[322345830,1712957443930,-500.0,0.00046575,31]
[322345831,1712957443939,-500.0,0.00046575,31]
[322345832,1712957443949,-500.0,0.00046575,2]
[322345833,1712957443959,-500.0,0.00046575,31]
[322345834,1712957443968,-500.0,0.00046575,31]
[322345835,1712957443978,-270.55954028,0.00046575,31]
[322345836,1712957443988,-500.0,0.00046575,31]
[322345837,1712957443998,-500.0,0.00046575,31]
[322345838,1712957444007,-500.0,0.00046575,31]
[322345839,1712957444017,-500.0,0.00046575,31]
[322345840,1712957444026,-500.0,0.00046575,31]
[322345841,1712957444036,-500.0,0.00046575,31]
[322345842,1712957444045,-500.0,0.00046575,31]
[322345843,1712957444055,-500.0,0.00046575,31]
[322345844,1712957444064,-500.0,0.00046575,31]
[322345845,1712957444074,-500.0,0.00046575,31]
[322345846,1712957444082,-500.0,0.00046575,31]
[322345847,1712957444092,-500.0,0.00046575,31]
[322345848,1712957444101,-500.0,0.00046575,31]
[322345849,1712957444110,-500.0,0.00046575,30]
[322345850,1712957444120,-500.0,0.00046575,31]
[322345851,1712957444129,-500.0,0.00046575,31]
[322345852,1712957444138,-500.0,0.00046575,31]
[322345853,1712957444147,-500.0,0.00046575,31]
[322345854,1712957444156,-500.0,0.00046575,31]
[322345855,1712957444165,-500.0,0.00046575,31]
[322345856,1712957444174,-500.0,0.00046575,31]
[322345857,1712957444184,-500.0,0.00046575,31]
[322345858,1712957444193,-500.0,0.00046575,31]
[322345859,1712957444201,-500.0,0.00046575,31]
[322345860,1712957444211,-500.0,0.00046575,31]
[322345861,1712957444220,-539.6,0.00046575,31]
[322345862,1712957444229,-500.0,0.00046575,31]
[322345863,1712957444238,-500.0,0.00046575,31]
[322345864,1712957444247,-500.0,0.00046575,31]
[322345865,1712957444257,-500.0,0.00046575,31]
[322345866,1712957444266,-500.0,0.00046575,31]
[322345867,1712957444275,-500.0,0.00046575,31]
[322345868,1712957444285,-500.0,0.00046575,31]
[322345869,1712957444295,-500.0,0.00046575,31]
[322345870,1712957444304,-500.0,0.00046575,31]
[322345871,1712957444314,-500.0,0.00046575,31]
[322345872,1712957444323,-500.0,0.00046575,31]
[322345873,1712957444332,-500.0,0.00046575,31]
[322345874,1712957444341,-500.0,0.00046575,31]
[322345876,1712957444350,-500.0,0.00046575,31]
[322345880,1712957444369,-500.0,0.00046575,31]
[322345881,1712957444380,-596.91512211,0.00046575,7]
[322345882,1712957444390,-500.0,0.00046575,31]
[322345883,1712957444400,-500.0,0.00046575,31]
[322345884,1712957444409,-500.0,0.00046575,31]
[322345885,1712957444419,-500.0,0.00046575,31]
[322345886,1712957444429,-500.0,0.00046575,31]
[322345887,1712957444439,-500.0,0.00046575,31]
[322345888,1712957444448,-500.0,0.00046575,31]
[322345889,1712957444458,-500.0,0.00046575,31]
[322345890,1712957444468,-500.0,0.00046575,31]
[322345891,1712957444478,-500.0,0.00046575,31]
[322345892,1712957444487,-500.0,0.00046575,31]
[322345893,1712957444497,-500.0,0.00046575,31]
[322345894,1712957444507,-508.89238929,0.00046575,31]
[322345895,1712957444517,-500.0,0.00046575,31]
[322345896,1712957444526,-500.0,0.00046575,31]
[322345897,1712957444536,-500.0,0.00046575,31]
[322345898,1712957444546,-500.0,0.00046575,31]
[322345899,1712957444555,-503.80910303,0.00046575,31]
[322345900,1712957444565,-500.0,0.00046575,31]
[322345901,1712957444574,-500.0,0.00046575,31]
[322345902,1712957444584,-500.0,0.00046575,31]
[322345903,1712957444594,-496.5542568,0.00046575,31]
[322345904,1712957444603,-500.0,0.00046575,31]
[322345905,1712957444613,-500.0,0.00046575,31]
[322345906,1712957444622,-500.0,0.00046575,31]
[322345907,1712957444632,-500.0,0.00046575,31]
[322345908,1712957444642,-500.0,0.00046575,31]
[322345909,1712957444653,-500.0,0.00046575,31]
[322345910,1712957444663,-500.0,0.00046575,31]
[322345911,1712957444673,-548.85597527,0.00046575,31]
[322345912,1712957444683,-500.0,0.00046575,31]
[322345913,1712957444693,-500.0,0.00046575,31]
[322345914,1712957444703,-500.0,0.00046575,31]
[322345915,1712957444712,-500.0,0.00046575,31]
[322345916,1712957444722,-500.0,0.00046575,31]
[322345917,1712957444731,-500.0,0.00046575,31]
[322345918,1712957444742,-500.0,0.00046575,2]
[322345919,1712957444752,-500.0,0.00046575,31]
[322345920,1712957444761,-500.0,0.00046575,31]
[322345921,1712957444770,-500.0,0.00046575,31]